fUST/lending_fUST_20250725
["ID","MTS","AMOUNT","RATE_DAILY","PERIOD"]
[374801326,1753449042629,-880.03,0.00022191,2]
[374801328,1753449042639,-460.0,0.00022275,2]
[374801330,1753449042648,-152.54994136,0.00022429,2]
[374801332,1753449042659,-2214.36,0.00022465,2]
[374801334,1753449042669,-399.75595768,0.00022465,2]
[374801336,1753449042679,-460.0,0.00022465,2]
[374801338,1753449042688,-460.0,0.00022465,2]
[374801340,1753449042698,-585.77,0.00022465,2]
[374801342,1753449042707,-492.4,0.00022465,2]
[374801344,1753449042718,-645.77,0.00022465,2]
[374801346,1753449042728,-460.0,0.00022465,2]
[374801348,1753449042738,-714.35,0.00022465,2]
[374801350,1753449042748,-460.0,0.00022465,2]
[374801352,1753449042758,-788.93,0.00022465,2]
[374801354,1753449042768,-677.63,0.00022465,2]
[374801356,1753449042778,-1448.03,0.00022465,2]
[374801358,1753449042788,-1369.41,0.00022465,2]
[374801360,1753449042798,-1720.48,0.00022465,2]
[374801362,1753449042808,-759.95,0.00022465,2]
[374801364,1753449042818,-880.03,0.00022465,2]
[374801366,1753449042830,-320.47,0.000225,2]
[374801368,1753449042840,-150.0,0.000225,2]
[374801370,1753449042850,-648.0,0.000225,2]
[374801372,1753449042861,-969.0,0.000225,2]
[374801374,1753449042871,-500.0,0.00022518,2]
[374801376,1753449042881,-207.6,0.00022522,5]
[374801378,1753449042890,-500.0,0.00022589,2]
[374801380,1753449042900,-2214.36,0.00022739,2]
[374801382,1753449042910,-460.0,0.00022739,2]
[374801384,1753449042920,-460.0,0.00022739,2]
[374801386,1753449042929,-585.77,0.00022739,2]
[374801388,1753449042939,-492.4,0.00022739,2]
[374801390,1753449042950,-645.77,0.00022739,2]
[374801392,1753449042960,-460.0,0.00022739,2]
[374801395,1753449042970,-714.35,0.00022739,2]
[374801397,1753449042979,-460.0,0.00022739,2]
[374801399,1753449042988,-788.93,0.00022739,2]
[374801401,1753449042997,-677.63,0.00022739,2]
[374801403,1753449043007,-1369.41,0.00022739,2]
[374801406,1753449043017,-1720.48,0.00022739,2]
[374801409,1753449043027,-759.95,0.00022739,2]
[374801412,1753449043036,-880.03,0.00022739,2]
[374801416,1753449043046,-600.0,0.00022799,2]
[374801419,1753449043055,-240.0,0.00022823,2]
[374801422,1753449043064,-3334.59772039,0.000229,2]
[374801425,1753449043073,-320.47,0.00022975,2]
[374801428,1753449043083,-2889.52293754,0.00022982,2]
[374801431,1753449043092,-336.17,0.00023,2]
[374801433,1753449043101,-151.0,0.00023,7]
[374801437,1753449043112,-430.20377994,0.00023,3]
[374801440,1753449043121,-160.0,0.00023,2]
[374801442,1753449043130,-160.0,0.00023,3]
[374801445,1753449043140,-2214.36,0.00023013,2]
[374801448,1753449043151,-312.54338973,0.00023013,2]
[374801452,1753449043160,-460.0,0.00023013,2]
[374801454,1753449043170,-585.77,0.00023013,2]
[374801457,1753449043180,-492.4,0.00023013,2]
[374801461,1753449043191,-645.77,0.00023013,2]
[374801464,1753449043200,-460.0,0.00023013,2]
[374801467,1753449043210,-714.35,0.00023013,2]
[374801470,1753449043220,-460.0,0.00023013,2]
[374801473,1753449043230,-788.93,0.00023013,2]
[374801476,1753449043239,-677.63,0.00023013,2]
[374801478,1753449043249,-1369.41,0.00023013,2]
[374801480,1753449043258,-1720.48,0.00023013,2]
[374801482,1753449043268,-759.95,0.00023013,2]
[374801484,1753449043277,-880.03,0.00023013,2]
[374801486,1753449043287,-170.0,0.00023014,7]
[374801488,1753449043296,-207.6,0.00023031,5]
[374801490,1753449043305,-863.23,0.00023033,2]
[374801492,1753449043316,-17886.15084021,0.00023055,3]
[374801494,1753449043326,-1139.9076075,0.00023066,2]
[374801496,1753449043336,-223.0315306,0.00023067,2]
[374801498,1753449043346,-38462.44,0.000231,2]
[374801500,1753449043355,-167.4724735,0.00023123,2]
[374801502,1753449043364,-1000.0,0.00023137,2]
[374801504,1753449043374,-982.96,0.00023154,7]
[374801506,1753449043384,-173.92417718,0.00023233,2]
[374801508,1753449043393,-982.96,0.00023254,6]
[374801510,1753449043404,-2214.36,0.00023287,2]
[374801512,1753449043414,-460.0,0.00023287,2]
[374801514,1753449043424,-585.77,0.00023287,2]
[374801516,1753449043434,-492.4,0.00023287,2]
[374801518,1753449043445,-645.77,0.00023287,2]
[374801520,1753449043454,-460.0,0.00023287,2]
[374801522,1753449043464,-714.35,0.00023287,2]
[374801524,1753449043474,-319.58683204,0.00023287,2]
[374801526,1753449043483,-788.93,0.00023287,2]
[374801528,1753449043493,-677.63,0.00023287,2]
[374801530,1753449043503,-1369.41,0.00023287,2]
[374801532,1753449043513,-1720.48,0.00023287,2]
[374801534,1753449043523,-759.95,0.00023287,2]
[374801536,1753449043532,-880.03,0.00023287,2]
[374801538,1753449043542,-11013.74,0.000233,7]
[374801540,1753449043552,-173.92417718,0.00023342,2]
[374801543,1753449043562,-982.96,0.00023354,2]
[374801545,1753449043571,-3639.0411599,0.00023354,2]
[374801547,1753449043580,-2405.96,0.000234,7]
[374801549,1753449043590,-3558.78,0.000234,7]
[374801551,1753449043600,-173.92417718,0.00023452,2]
[374801553,1753449043610,-982.96,0.00023454,5]
[374801554,1753449043620,-320.47,0.00023462,2]
[374801556,1753449043630,-160.16546944,0.00023534,2]
[374801558,1753449043639,-160.16546945,0.00023534,2]
[374801560,1753449043649,-207.6,0.0002354,6]
[374801562,1753449043659,-800.0,0.00023551,2]
[374801564,1753449043669,-982.96,0.00023554,5]
[374801566,1753449043678,-2214.36,0.00023561,2]
[374801568,1753449043687,-460.0,0.00023561,2]
[374801570,1753449043696,-585.77,0.00023561,2]
[374801572,1753449043706,-492.4,0.00023561,2]
[374801575,1753449043715,-645.77,0.00023561,2]
[374801578,1753449043725,-460.0,0.00023561,2]
[374801580,1753449043735,-714.35,0.00023561,2]
[374801582,1753449043745,-788.93,0.00023561,2]
[374801583,1753449043754,-677.63,0.00023561,2]
[374801585,1753449043764,-1369.41,0.00023561,2]
[374801587,1753449043774,-1720.48,0.00023561,2]
[374801589,1753449043783,-759.95,0.00023561,2]
[374801591,1753449043792,-880.03,0.00023561,2]
[374801593,1753449043802,-173.92417718,0.00023562,2]
[374801594,1753449043811,-152.704267,0.00023577,2]
[374801596,1753449043820,-982.96,0.00023654,4]
[374801598,1753449043832,-173.92417718,0.00023671,2]
[374801600,1753449043842,-152.704267,0.0002369,3]
[374801602,1753449043852,-982.96,0.00023754,4]
[374801604,1753449043861,-173.92417718,0.00023781,2]
[374801606,1753449043871,-2214.36,0.00023835,2]
[374801608,1753449043880,-460.0,0.00023835,2]
[374801610,1753449043890,-585.77,0.00023835,2]
[374801611,1753449043899,-492.4,0.00023835,2]
[374801613,1753449043911,-645.77,0.00023835,2]
[374801615,1753449043921,-460.0,0.00023835,2]
[374801617,1753449043931,-714.35,0.00023835,2]
[374801619,1753449043941,-788.93,0.00023835,2]
[374801621,1753449043951,-677.63,0.00023835,2]
[374801623,1753449043960,-1369.41,0.00023835,2]
[374801625,1753449043970,-1720.48,0.00023835,2]
[374801626,1753449043979,-759.95,0.00023835,2]
[374801628,1753449043989,-880.03,0.00023835,2]
[374801630,1753449043998,-160.16546944,0.00023836,2]
[374801632,1753449044008,-160.16546945,0.00023836,2]
[374801634,1753449044017,-12500.0,0.00023846,7]
[374801636,1753449044027,-3334.59772039,0.0002385,2]
[374801637,1753449044036,-982.96,0.00023854,6]
[374801639,1753449044046,-173.92417718,0.0002389,2]
[374801641,1753449044056,-600.0,0.00023895,2]
[374801643,1753449044065,-1129.43206798,0.000239,2]
[374801645,1753449044075,-600.0,0.00023904,2]
[374801647,1753449044084,-320.47,0.00023949,2]
[374801649,1753449044094,-982.96,0.00023954,7]
[374801651,1753449044103,-151.0,0.00024,9]
[374801652,1753449044112,-160.0,0.00024,7]
[374801654,1753449044121,-500.0,0.00024027,30]
[374801656,1753449044130,-173.92417718,0.00024027,2]
[374801658,1753449044139,-207.6,0.0002405,6]
[374801660,1753449044149,-982.96,0.00024054,5]
[374801670,1753449044252,-500.0,0.00024056,2]
[374801672,1753449044263,-500.0,0.00024081,2]
[374801674,1753449044273,-153.0,0.00024082,2]
[374801676,1753449044282,-153.0,0.00024082,2]
[374801677,1753449044292,-151.0,0.000241,6]
[374801679,1753449044302,-38462.44,0.000241,2]
[374801681,1753449044312,-154.821368,0.000241,2]
[374801683,1753449044322,-500.0,0.000241,2]
[374801685,1753449044331,-2214.36,0.00024109,2]
[374801687,1753449044340,-460.0,0.00024109,2]
[374801689,1753449044351,-585.77,0.00024109,2]
[374801691,1753449044368,-492.4,0.00024109,2]
[374801693,1753449044379,-645.77,0.00024109,2]
[374801694,1753449044389,-460.0,0.00024109,2]
[374801696,1753449044399,-714.35,0.00024109,2]
[374801698,1753449044410,-788.93,0.00024109,2]
[374801700,1753449044419,-677.63,0.00024109,2]
[374801702,1753449044429,-1369.41,0.00024109,2]
[374801704,1753449044439,-1720.48,0.00024109,2]
[374801706,1753449044449,-151.0,0.00024109,7]
[374801708,1753449044458,-759.95,0.00024109,2]
[374801710,1753449044467,-880.03,0.00024109,2]
[374801712,1753449044476,-152.54994136,0.00024116,2]
[374801714,1753449044486,-823.0,0.0002412,2]
[374801715,1753449044495,-173.92417718,0.00024137,2]
[374801717,1753449044504,-600.0,0.00024153,2]
[374801719,1753449044514,-982.96,0.00024154,3]
[374801721,1753449044524,-160.16546944,0.00024164,2]
[374801723,1753449044534,-160.16546945,0.00024164,2]
[374801725,1753449044544,-500.0,0.0002418,2]
[374801727,1753449044554,-719.78113516,0.00024195,2]
[374801729,1753449044564,-500.0,0.0002423,2]
[374801731,1753449044574,-173.92417718,0.00024247,2]
[374801733,1753449044583,-2200.0,0.00024248,2]
[374801734,1753449044592,-500.0,0.0002425,2]
[374801736,1753449044602,-982.96,0.00024254,4]
[374801738,1753449044611,-153.0,0.00024274,2]
[374801740,1753449044620,-159.9857365,0.00024274,2]
[374801742,1753449044631,-178.3051933,0.00024274,2]
[374801744,1753449044642,-159.9857365,0.00024274,2]
[374801746,1753449044652,-500.0,0.0002429,2]
[374801748,1753449044662,-11013.74,0.000243,7]
[374801750,1753449044672,-312.16666667,0.000243,7]
[374801752,1753449044693,-151.0,0.000243,7]
[374801754,1753449044702,-151.513923,0.000243,7]
[374801755,1753449044711,-151.0,0.000243,7]
[374801757,1753449044721,-500.0,0.00024309,2]
[374801759,1753449044731,-982.96,0.00024354,2]
[374801761,1753449044740,-173.92417718,0.00024356,2]
[374801763,1753449044749,-500.0,0.00024359,2]
[374801765,1753449044759,-168.0,0.00024362,2]
[374801767,1753449044768,-152.704267,0.00024368,6]
[374801769,1753449044777,-500.0,0.0002438,2]
[374801771,1753449044786,-2214.36,0.00024383,2]
[374801773,1753449044796,-460.0,0.00024383,2]
[374801775,1753449044805,-492.4,0.00024383,2]
[374801776,1753449044815,-585.77,0.00024383,2]
[374801778,1753449044824,-645.77,0.00024383,2]
[374801780,1753449044838,-345.21,0.00024383,2]
[374801782,1753449044848,-714.35,0.00024383,2]
[374801784,1753449044858,-788.93,0.00024383,2]
[374801786,1753449044868,-677.63,0.00024383,2]
[374801788,1753449044879,-1369.41,0.00024383,2]
[374801790,1753449044890,-1720.48,0.00024383,2]
[374801792,1753449044900,-759.95,0.00024383,2]
[374801794,1753449044911,-880.03,0.00024383,2]
[374801796,1753449044922,-500.0,0.00024389,2]
[374801798,1753449044931,-151.0,0.000244,9]
[374801800,1753449044941,-3558.78,0.000244,7]
[374801801,1753449044951,-421.780334,0.00024401,8]
[374801803,1753449044961,-972.74372205,0.00024402,2]
[374801805,1753449044971,-231.28369723,0.00024436,2]
[374801807,1753449044980,-320.47,0.00024437,2]
[374801809,1753449044990,-982.96,0.00024454,3]
[374801811,1753449045000,-173.92417718,0.00024466,2]
[374801813,1753449045009,-500.0,0.00024471,2]
[374801815,1753449045020,-500.0,0.00024477,2]
[374801817,1753449045029,-151.0,0.000245,6]
[374801819,1753449045039,-152.704267,0.000245,30]
[374801821,1753449045048,-2405.96,0.000245,7]
[374801822,1753449045057,-205.0,0.0002454,2]
[374801824,1753449045067,-982.96,0.00024554,6]
[374801826,1753449045076,-207.6,0.00024559,6]
[374801828,1753449045086,-152.704267,0.00024625,3]
[374801830,1753449045095,-500.0,0.00024625,2]
[374801832,1753449045106,-500.0,0.0002464,2]
[374801834,1753449045115,-982.96,0.00024654,2]
[374801836,1753449045124,-2214.36,0.00024657,2]
[374801838,1753449045133,-460.0,0.00024657,2]
[374801840,1753449045143,-492.4,0.00024657,2]
[374801842,1753449045155,-585.77,0.00024657,2]
[374801844,1753449045164,-645.77,0.00024657,2]
[374801846,1753449045174,-151.0,0.00024657,7]
[374801848,1753449045184,-714.35,0.00024657,2]
[374801849,1753449045193,-151.0,0.00024657,7]
[374801851,1753449045203,-151.0,0.00024657,7]
[374801853,1753449045213,-788.93,0.00024657,2]
[374801855,1753449045222,-677.63,0.00024657,2]
[374801857,1753449045233,-151.0,0.00024657,7]
[374801859,1753449045242,-1369.41,0.00024657,2]
[374801861,1753449045252,-1720.48,0.00024657,2]
[374801863,1753449045262,-759.95,0.00024657,2]
[374801865,1753449045271,-880.03,0.00024657,2]
[374801867,1753449045282,-380.0,0.00024658,2]
[374801869,1753449045291,-500.0,0.00024669,2]
[374801871,1753449045302,-500.0,0.00024674,2]
[374801873,1753449045312,-407.0,0.00024674,2]
[374801875,1753449045321,-407.0,0.00024674,2]
[374801877,1753449045330,-168.0,0.00024713,2]
[374801878,1753449045340,-20.27411758,0.00024724,2]
[374801887,1753449045416,-479.72588242,0.00024724,2]
[374801889,1753449045426,-982.96,0.00024754,4]
[374801891,1753449045436,-150.0,0.00024773,2]
[374801893,1753449045445,-239.5629117,0.00024795,2]
[374801895,1753449045455,-153.0,0.00024795,2]
[374801897,1753449045465,-153.0,0.00024795,2]
[374801898,1753449045474,-153.0,0.00024795,2]
[374801900,1753449045483,-153.0,0.00024795,2]
[374801902,1753449045493,-153.0,0.00024795,2]
[374801904,1753449045502,-153.0,0.00024795,2]
[374801906,1753449045512,-153.0,0.00024795,2]
[374801908,1753449045521,-1004.284523,0.000248,2]
[374801910,1753449045531,-7691.46668288,0.000248,2]
[374801938,1753449045809,-595.05893668,0.000248,2]
[374801940,1753449045819,-3334.59772039,0.000248,2]
[374801942,1753449045830,-9972.34621078,0.00024805,2]
[374801944,1753449045841,-527.16018611,0.00024807,2]
[374801945,1753449045852,-461.93497988,0.00024807,2]
[374801948,1753449045864,-1045.36510411,0.00024807,2]
[374801950,1753449045877,-601.34066044,0.00024807,2]
[374801952,1753449045887,-4744.44167498,0.00024807,2]
[374801954,1753449045897,-8426.12841476,0.00024807,2]
[374801956,1753449045910,-1111.59222031,0.00024807,2]
[374801959,1753449045919,-152.704267,0.00024817,2]
[374801961,1753449045929,-5861.96521756,0.00024831,2]
[374801964,1753449045938,-211.0,0.0002484,12]
[374801967,1753449045947,-500.0,0.00024848,2]
[374801969,1753449045957,-500.0,0.00024848,2]
[374801971,1753449045966,-982.96,0.00024854,7]
[374801973,1753449045976,-151.0,0.00024856,2]
[374801975,1753449045986,-465.0,0.00024856,2]
[374801977,1753449045996,-151.0,0.00024856,2]
[374801979,1753449046006,-151.0,0.00024856,2]
[374801981,1753449046016,-151.0,0.00024856,7]
[374801983,1753449046026,-151.0,0.00024856,2]
[374801985,1753449046035,-151.0,0.00024856,7]
[374801986,1753449046044,-265.14297112,0.00024856,2]
[374801988,1753449046053,-151.0,0.00024856,2]
[374801990,1753449046063,-87.63181328,0.00024856,7]
[374801992,1753449046075,-63.36818672,0.00024856,7]
[374801994,1753449046084,-151.0,0.00024856,7]
[374801996,1753449046094,-151.0,0.00024856,7]
[374801998,1753449046104,-151.0,0.00024856,7]
[374802000,1753449046113,-151.0,0.00024856,7]
[374802002,1753449046123,-151.0,0.00024856,2]
[374802004,1753449046132,-151.0,0.00024856,2]
[374802006,1753449046142,-151.0,0.00024856,2]
[374802008,1753449046152,-151.0,0.00024856,2]
[374802010,1753449046162,-151.0,0.00024856,2]
[374802012,1753449046171,-151.0,0.00024856,2]
[374802014,1753449046181,-151.0,0.00024856,2]
[374802015,1753449046190,-151.0,0.00024856,2]
[374802017,1753449046199,-151.0,0.00024856,2]
[374802019,1753449046209,-151.0,0.00024856,2]
[374802021,1753449046217,-253.52046372,0.00024856,2]
[374802023,1753449046227,-500.0,0.00024856,2]
[374802025,1753449046236,-151.0,0.00024856,2]
[374802027,1753449046245,-2449.3364676,0.00024874,2]
[374802029,1753449046255,-920.72506884,0.0002488,2]
[374802031,1753449046267,-12997.17058919,0.00024888,2]
[374802033,1753449046276,-151.0,0.00024888,7]
[374802035,1753449046286,-151.0,0.00024888,7]
[374802036,1753449046295,-390.00266125,0.00024888,2]
[374802038,1753449046305,-151.45644,0.00024888,7]
[374802040,1753449046314,-151.0,0.0002489,7]
[374802042,1753449046324,-151.0,0.0002489,7]
[374802044,1753449046333,-151.0,0.0002489,7]
[374802046,1753449046342,-151.0,0.0002489,7]
[374802048,1753449046353,-151.0,0.0002489,7]
[374802050,1753449046363,-155.84,0.000249,4]
[374802052,1753449046372,-173.21,0.000249,4]
[374802054,1753449046382,-171.084593,0.000249,7]
[374802056,1753449046391,-151.0,0.000249,7]
[374802058,1753449046402,-151.0,0.000249,7]
[374802060,1753449046411,-151.0,0.000249,7]
[374802062,1753449046421,-199.268783,0.000249,7]
[374802063,1753449046430,-151.0,0.000249,7]
[374802065,1753449046439,-151.0,0.000249,7]
[374802067,1753449046448,-151.0,0.000249,7]
[374802069,1753449046458,-151.0,0.000249,7]
[374802071,1753449046467,-151.0,0.000249,7]
[374802073,1753449046476,-151.0,0.000249,7]
[374802075,1753449046486,-151.0,0.000249,7]
[374802077,1753449046496,-151.0,0.000249,7]
[374802079,1753449046506,-151.0,0.000249,7]
[374802081,1753449046515,-189.739843,0.000249,7]
[374802083,1753449046524,-224.377907,0.000249,7]
[374802085,1753449046534,-151.0,0.000249,7]
[374802086,1753449046543,-265.162738,0.000249,7]
[374802088,1753449046553,-151.0,0.000249,7]
[374802090,1753449046563,-151.0,0.000249,7]
[374802092,1753449046572,-173.407861,0.000249,7]
[374802094,1753449046581,-151.0,0.000249,7]
[374802096,1753449046591,-151.0,0.000249,7]
[374802098,1753449046601,-151.0,0.000249,7]
[374802100,1753449046611,-500.0,0.000249,2]
[374802102,1753449046621,-151.0,0.000249,7]
[374802104,1753449046630,-151.0,0.000249,7]
[374802106,1753449046639,-76773.94512456,0.000249,2]
[374802108,1753449046651,-2008.19839004,0.000249,2]
[374802110,1753449046663,-1414.53508058,0.000249,2]
[374802116,1753449046721,-178.3051933,0.00024247,2]
[374802118,1753449046730,-252.8448067,0.000249,2]
[374802120,1753449046742,-462.75695184,0.000249,2]
[374802123,1753449046754,-7628.68098108,0.000249,2]
[374802125,1753449046765,-123875.31927256,0.000249,2]
[374802127,1753449046776,-11754.29214302,0.000249,2]
[374802129,1753449046788,-777.17506577,0.000249,2]
[374802134,1753449046827,-496.04,0.00019178,2]
[374802145,1753449046933,-4257.86,0.00024615,10]
[374802147,1753449046946,-14254.84000001,0.000249,2]
[374802149,1753449046957,-436.68438848,0.000249,2]
[374806194,1753449582077,371.865951,0.00013699,2]
[374806378,1753450232724,-5000.0,0.00018402,2]
[374806380,1753450232735,-300.0,0.00018588,2]
[374806382,1753450232745,-1064.0,0.00018588,2]
[374806383,1753450232754,-1813.20040788,0.00018589,2]
[374806386,1753450232767,-1951.7850415,0.00018589,2]
[374806391,1753450232843,-552.3362467,0.00018589,2]
[374806394,1753450232855,-500.59501,0.00018589,2]
[374806472,1753450238839,-20082.08329392,0.00018589,2]
[374806474,1753450238850,-157.59748786,0.00018857,2]
[374806476,1753450238860,-752.95471199,0.000189,2]
[374806478,1753450238870,-312.16666667,0.00018954,2]
[374806480,1753450238879,-800.0,0.00018963,2]
[374806482,1753450238889,-7578.47166458,0.00018978,2]
[374806485,1753450238899,-460.0,0.00019178,2]
[374806487,1753450238910,-460.0,0.00019178,2]
[374806488,1753450238920,-460.0,0.00019178,2]
[374806491,1753450238930,-274.15213862,0.00019178,2]
[374806493,1753450238940,-460.0,0.00019178,2]
[374806496,1753450238950,-460.0,0.00019178,2]
[374806498,1753450238960,-460.0,0.00019178,2]
[374806500,1753450238969,-460.0,0.00019178,2]
[374806502,1753450238979,-460.0,0.00019178,2]
[374806503,1753450238992,-460.0,0.00019178,2]
[374806505,1753450239002,-460.0,0.00019178,2]
[374806508,1753450239013,-460.0,0.00019178,2]
[374806509,1753450239023,-460.0,0.00019178,2]
[374806512,1753450239033,-460.0,0.00019178,2]
[374806514,1753450239042,-460.0,0.00019178,2]
[374806516,1753450239052,-460.0,0.00019178,2]
[374806517,1753450239062,-460.0,0.00019178,2]
[374806520,1753450239071,-515.09771588,0.00019178,2]
[374806522,1753450239081,-460.0,0.00019178,2]
[374806525,1753450239100,-460.0,0.00019178,2]
[374806527,1753450239111,-460.0,0.00019178,2]
[374806529,1753450239121,-740.99,0.00019178,2]
[374806531,1753450239130,-460.0,0.00019178,2]
[374806533,1753450239140,-460.0,0.00019178,2]
[374806535,1753450239150,-504.1,0.00019178,2]
[374806537,1753450239159,-460.0,0.00019178,2]
[374806539,1753450239170,-828.39,0.00019178,2]
[374806541,1753450239181,-460.0,0.00019178,2]
[374806543,1753450239191,-460.0,0.00019178,2]
[374806545,1753450239200,-460.0,0.00019178,2]
[374806547,1753450239211,-460.0,0.00019178,2]
[374806549,1753450239220,-460.0,0.00019178,2]
[374806551,1753450239230,-868.0,0.00019178,2]
[374806553,1753450239244,-460.0,0.00019178,2]
[374806555,1753450239255,-460.0,0.00019178,2]
[374806557,1753450239264,-771.17,0.00019178,2]
[374806559,1753450239273,-460.0,0.00019178,2]
[374806561,1753450239283,-460.0,0.00019178,2]
[374806563,1753450239292,-460.0,0.00019178,2]
[374806565,1753450239301,-2610.13,0.00019178,2]
[374806567,1753450239312,-460.0,0.00019178,2]
[374806568,1753450239321,-1862.29,0.00019178,2]
[374806570,1753450239331,-460.0,0.00019178,2]
[374806572,1753450239341,-460.0,0.00019178,2]
[374806575,1753450239350,-460.0,0.00019178,2]
[374806577,1753450239360,-1081.62,0.00019178,2]
[374806579,1753450239370,-460.0,0.00019178,2]
[374806581,1753450239380,-460.0,0.00019178,2]
[374806583,1753450239389,-460.0,0.00019178,2]
[374806585,1753450239400,-460.0,0.00019178,2]
[374806587,1753450239411,-460.0,0.00019178,2]
[374806589,1753450239420,-460.0,0.00019178,2]
[374806591,1753450239430,-1187.83,0.00019178,2]
[374806593,1753450239441,-460.0,0.00019178,2]
[374806595,1753450239451,-646.9,0.00019178,2]
[374806597,1753450239461,-211.5186869,0.00019178,2]
[374806599,1753450239470,-460.0,0.00019178,2]
[374806601,1753450239480,-460.0,0.00019178,2]
[374806603,1753450239492,-460.0,0.00019178,2]
[374806605,1753450239502,-460.0,0.00019178,2]
[374806607,1753450239512,-460.0,0.00019178,2]
[374806609,1753450239523,-1175.37,0.00019178,2]
[374806611,1753450239533,-460.0,0.00019178,2]
[374806613,1753450239542,-460.0,0.00019178,2]
[374806615,1753450239552,-460.0,0.00019178,2]
[374806617,1753450239562,-460.0,0.00019178,2]
[374806619,1753450239572,-460.0,0.00019178,2]
[374806621,1753450239581,-460.0,0.00019178,2]
[374806623,1753450239591,-460.0,0.00019178,2]
[374806625,1753450239600,-460.0,0.00019178,2]
[374806628,1753450239610,-958.95,0.00019178,2]
[374806630,1753450239619,-460.0,0.00019178,2]
[374806632,1753450239628,-460.0,0.00019178,2]
[374806634,1753450239638,-460.0,0.00019178,2]
[374806636,1753450239647,-460.0,0.00019178,2]
[374806638,1753450239657,-460.0,0.00019178,2]
[374806640,1753450239666,-460.0,0.00019178,2]
[374806642,1753450239676,-460.0,0.00019178,2]
[374806644,1753450239685,-460.0,0.00019178,2]
[374806646,1753450239694,-460.0,0.00019178,2]
[374806648,1753450239705,-460.0,0.00019178,2]
[374806650,1753450239715,-368.1781707,0.00019178,2]
[374806652,1753450239724,-3295.55,0.00019178,2]
[374806654,1753450239736,-460.0,0.00019178,2]
[374806656,1753450239745,-460.0,0.00019178,2]
[374806658,1753450239754,-460.0,0.00019178,2]
[374806660,1753450239764,-176.892422,0.00019178,2]
[374806662,1753450239774,-666.0,0.00019178,2]
[374806664,1753450239784,-363.23574977,0.00019452,2]
[374806666,1753450239793,-460.0,0.00019452,2]
[374806668,1753450239803,-460.0,0.00019452,2]
[374806670,1753450239813,-599.42186571,0.00019452,2]
[374806672,1753450239823,-363.5,0.00019452,2]
[374806674,1753450239832,-460.0,0.00019452,2]
[374806676,1753450239842,-460.0,0.00019452,2]
[374806678,1753450239852,-460.0,0.00019452,2]
[374806680,1753450239864,-740.99,0.00019452,2]
[374806682,1753450239874,-460.0,0.00019452,2]
[374806684,1753450239885,-460.0,0.00019452,2]
[374806686,1753450239895,-504.1,0.00019452,2]
[374806688,1753450239904,-828.39,0.00019452,2]
[374806690,1753450239914,-460.0,0.00019452,2]
[374806692,1753450239924,-460.0,0.00019452,2]
[374806694,1753450239933,-460.0,0.00019452,2]
[374806696,1753450239943,-868.0,0.00019452,2]
[374806698,1753450239952,-460.0,0.00019452,2]
[374806700,1753450239963,-460.0,0.00019452,2]